bitfinex-derivatives/quotes_ETHF0:USTF0_20240923
["timestamp","ask_amount","ask_price","bid_price","bid_amount"]
[1727134914860,1.00324,2648.9,2648.7,1.75256]
[1727134915860,0.37754,2648.8,2648.7,1.375]
[1727134916063,0.37754,2648.8,2648.7,1.9989]
[1727134916872,1.00324,2648.9,2648.7,2.37646]
[1727134917868,0.37754,2648.8,2648.7,2.37646]
[1727134918365,0.37753,2648.9,2648.7,2.37646]
[1727134918561,1.3143,2649.0,2648.8,0.37754]
[1727134918562,1.69182,2649.0,2648.8,0.37754]
[1727134918763,1.3143,2649.0,2648.8,0.37754]
[1727134919155,0.37753,2648.9,2648.7,2.37645]
[1727134920064,1.01142,2649.0,2648.8,0.37754]
[1727134920268,0.37753,2648.9,2648.7,1.9989]
[1727134920464,1.01142,2649.0,2648.7,1.9989]
[1727134920761,0.37753,2648.9,2648.7,2.37645]
[1727134921160,1.01142,2649.0,2648.8,0.37754]
[1727134921967,0.37753,2648.9,2648.7,2.37645]
[1727134922569,0.37753,2648.9,2648.8,0.37754]
[1727134923469,0.37753,2648.9,2648.7,2.37645]
[1727134924258,1.59753,2648.9,2648.7,2.37645]
[1727134924461,3.07177852,2648.9,2648.7,3.36439898]
[1727134926267,2.69424852,2648.9,2648.8,0.37754]
[1727134926468,1.47424852,2648.9,2648.8,1.95569857]
[1727134926893,0.6339,2649.0,2648.8,2.58656211]
[1727134927061,1.48478046,2649.0,2648.9,2.80275148]
[1727134927265,1.97783559,2649.5,2649.0,0.94379]
[1727134927476,2.64173559,2649.9,2649.7,0.37742]
[1727134927775,0.6639,2649.9,2649.8,3.19092748]
[1727134927968,0.6639,2649.9,2649.8,1.57765371]
[1727134928162,0.6639,2649.9,2649.8,0.98768688]
[1727134928467,0.6639,2649.9,2649.7,0.98768688]
[1727134928664,3.6913,2649.9,2649.6,4.57291688]
[1727134928872,3.6913,2649.9,2649.6,1.36511688]
[1727134929068,3.6913,2649.9,2649.7,0.98768688]
[1727134929273,3.6913,2649.9,2649.5,5.58503402]
[1727134929274,0.6639,2649.9,2649.6,1.17519868]
[1727134929460,0.6639,2649.9,2649.8,0.3774]
[1727134929662,0.37735,2650.2,2649.8,0.3774]
[1727134929880,0.37736,2650.1,2649.8,1.36508688]
[1727134930176,0.37736,2650.1,2649.8,0.98768688]
[1727134930375,4.0292,2650.2,2649.8,0.98768688]
[1727134930568,4.0292,2650.2,2649.9,4.10231062]
[1727134930569,4.40655,2650.2,2649.9,4.10231062]
[1727134930768,4.40655,2650.2,2649.7,0.98768688]
[1727134930769,0.37738,2650.0,2649.7,0.98768688]
[1727134931066,0.37742,2649.7,2649.5,1.65628688]
[1727134931268,2.42363,2649.6,2649.4,0.98768688]
[1727134931479,2.0462,2649.6,2649.3,4.85158688]
[1727134931776,2.0462,2649.6,2649.3,3.2078]
[1727134931971,2.42363,2649.6,2649.3,3.58527]
[1727134932670,2.0462,2649.6,2649.3,3.58527]
[1727134933273,0.37744,2649.5,2649.3,3.2078]
[1727134933464,2.42364,2649.6,2649.3,3.2078]
[1727134933661,2.0462,2649.6,2649.3,3.2078]
[1727134933868,2.42364,2649.6,2649.3,3.58527]
[1727134934270,2.42364,2649.6,2649.3,3.2078]
[1727134934569,2.42364,2649.6,2649.3,3.58527]
[1727134934971,2.42364,2649.6,2649.3,3.2078]
[1727134935169,2.42364,2649.6,2649.2,1.36516688]
[1727134935373,0.37745,2649.5,2649.2,1.36516688]
[1727134935573,0.37745,2649.5,2649.2,0.37748]
[1727134937380,2.42364,2649.6,2649.3,0.37747]
[1727134937567,2.42364,2649.6,2649.4,0.37746]
[1727134937774,3.58518,2650.0,2649.3,3.2078]
[1727134937980,5.61078,2650.0,2649.7,0.37741]
[1727134938680,0.37739,2649.9,2649.7,0.37741]
[1727134938879,2.0256,2650.0,2649.9,0.37739]
[1727134939177,2.0256,2650.0,2649.6,3.2078]
[1727134939418,2.0256,2650.0,2649.8,0.37739]
[1727134939983,2.0256,2650.0,2649.7,0.3774]
[1727134940180,2.40298,2650.0,2649.7,0.3774]
[1727134940574,0.3774,2649.9,2649.6,0.37742]
[1727134940769,2.40298,2650.0,2649.7,0.3774]
[1727134941378,2.0256,2650.0,2649.8,0.3774]
[1727134942185,2.0256,2650.0,2649.6,6.1698]
[1727134942373,2.0256,2650.0,2649.8,0.3774]
[1727134942781,1.3466,2650.0,2649.9,0.37739]
[1727134943277,3.2078,2650.3,2650.2,0.37734]
[1727134944585,3.94515,2650.9,2650.2,17.141094]
[1727134944586,0.352,2650.9,2650.2,17.141094]
[1727134944880,0.352,2651.4,2650.7,2.65]
[1727134945081,0.6596,2651.6,2651.1,3.2078]
[1727134945277,3.2078,2651.9,2651.3,2.65]
[1727134945589,3.2078,2651.9,2651.7,0.37712]
[1727134945775,0.6596,2652.2,2651.7,4.14832]
[1727134946080,1.03667,2652.2,2651.7,3.2078]
[1727134946283,0.6596,2652.2,2651.7,3.58492]
[1727134946480,6.2349,2652.0,2651.5,3.33916]
[1727134946682,0.3771,2651.9,2651.4,4.41335996]
[1727134946890,0.3771,2651.9,2651.5,2.962]
[1727134947183,5.8578,2652.0,2651.5,4.32996658]
[1727134947184,2.65,2651.7,2651.5,4.32996658]
[1727134947381,2.65,2651.7,2651.2,2.961]
[1727134947382,0.6853,2651.6,2651.2,2.961]
[1727134947882,0.6853,2651.6,2651.3,0.37718]
[1727134948284,0.6853,2651.6,2651.2,0.37719]
[1727134948480,0.6853,2651.6,2651.3,0.37718]
[1727134948783,0.6853,2651.6,2651.5,0.37716]
[1727134948972,0.37708,2652.1,2651.6,0.37714]
[1727134949177,3.71237,2652.2,2651.4,7.39848701]
[1727134949377,3.3353,2652.2,2651.5,0.6416]
[1727134949573,3.3353,2652.2,2651.7,0.37712]
[1727134949574,3.71237,2652.2,2651.7,0.37712]
[1727134949984,0.37707,2652.1,2651.5,7.63462415]
[1727134950183,3.58487,2652.1,2651.6,0.37714]
[1727134950382,0.37707,2652.1,2651.6,0.37714]
[1727134950784,3.58487,2652.1,2651.6,0.37714]
[1727134951181,0.37709,2652.0,2651.5,7.63463415]
[1727134951384,0.37711,2651.9,2651.4,0.37717]
[1727134951989,3.58488,2652.1,2651.6,0.37714]
[1727134952396,3.2078,2652.1,2651.5,3.93982769]
[1727134952687,0.37709,2652.0,2651.5,0.37716]
[1727134953386,0.37709,2652.0,2651.5,0.37715]
[1727134953787,0.37709,2652.0,2651.6,0.37714]
[1727134954185,0.37709,2652.0,2651.5,0.37715]
[1727134954399,0.37709,2652.0,2651.5,0.37716]
[1727134954689,0.37709,2652.0,2651.4,3.2078]
[1727134954690,0.37713,2651.8,2651.4,3.2078]
[1727134954984,0.37713,2651.8,2651.4,6.54497]
[1727134955783,0.37711,2651.9,2651.5,0.37716]
[1727134955988,0.37711,2651.9,2651.4,6.54496]
[1727134956692,0.37712,2651.8,2651.4,6.54496]
[1727134956885,0.37712,2651.8,2651.4,6.1678]
[1727134957194,0.37712,2651.8,2651.4,6.54497]
[1727134957889,0.37715,2651.6,2651.4,3.2078]
[1727134958198,1.3793,2651.5,2651.4,3.2078]
[1727134959593,0.6828,2651.5,2651.4,3.2078]
[1727134960395,0.6828,2651.5,2651.4,3.58497]
[1727134961091,1.06231,2651.9,2651.4,3.58497]
[1727134961295,3.58488,2652.1,2651.4,10.17462523]
[1727134961596,0.37711,2651.9,2651.6,0.37714]
[1727134961792,0.6386,2652.2,2651.5,3.01]
[1727134961989,0.37709,2652.0,2651.6,3.38614]
[1727134962195,0.37709,2652.0,2651.6,4.03314]
[1727134964797,0.37711,2651.9,2651.6,4.03314]
[1727134964994,3.2078,2652.1,2651.6,3.009]
[1727134964995,4.15052,2652.1,2651.6,3.009]
[1727134965297,0.6847,2651.8,2651.6,3.009]
[1727134965604,1.06182,2651.8,2651.6,3.009]
[1727134966296,0.6847,2651.8,2651.6,3.009]
[1727134966597,1.06182,2651.8,2651.6,3.009]
[1727134966985,0.6847,2651.8,2651.6,3.38614]
[1727134967498,0.37708,2652.1,2651.7,4.14833]
[1727134967688,0.37708,2652.1,2651.7,1.01893]
[1727134967888,0.37708,2652.1,2651.8,0.6715]
[1727134968083,1.01567,2652.2,2651.9,0.3771]
[1727134968384,0.37708,2652.1,2651.8,1.04861]
[1727134968592,0.6386,2652.2,2651.8,1.04861]
[1727134968789,1.01567,2652.2,2651.8,1.04861]
[1727134970186,3.58483,2652.4,2652.1,0.37707]
[1727134970392,0.37704,2652.4,2651.9,2.65]
[1727134970593,0.37703,2652.5,2652.1,0.37706]
[1727134971094,0.682,2652.7,2652.1,2.65]
[1727134971095,0.37702,2652.6,2652.1,2.65]
[1727134971290,0.37702,2652.6,2652.2,0.6455]
[1727134971487,0.37702,2652.5,2652.2,1.02255]
[1727134971797,3.8898,2652.7,2652.3,0.6756]
[1727134971991,0.37703,2652.4,2652.1,5.659]
[1727134972805,0.37705,2652.3,2652.1,5.659]
[1727134972997,4.8323,2652.7,2652.1,6.03607]
[1727134972998,0.37704,2652.4,2652.1,6.03607]
[1727134974094,0.37704,2652.4,2652.1,3.38607]
[1727134974389,0.37705,2652.3,2652.1,3.009]
[1727134974591,0.37705,2652.3,2651.3,1.07676213]
[1727134974592,0.37714,2651.6,2651.5,0.088]
[1727134974796,0.37714,2651.6,2651.4,0.641]
[1727134975592,0.66,2651.7,2651.5,0.37716]
[1727134975793,0.66,2651.7,2651.4,3.291]
[1727134976301,0.37712,2651.8,2651.4,3.291]
[1727134976597,0.37712,2651.8,2651.5,0.37714]
[1727134976598,3.58492,2651.8,2651.5,0.37714]
[1727134976909,0.37712,2651.8,2651.6,0.37714]
[1727134977210,3.58492,2651.8,2651.6,0.37714]
[1727134977691,3.58492,2651.8,2651.6,1.02114]
[1727134978092,3.58492,2651.8,2651.5,3.6503]
[1727134978093,3.2078,2651.8,2651.5,3.009]
[1727134978296,0.68,2651.7,2651.5,3.009]
[1727134978696,0.37714,2651.6,2651.5,3.009]
[1727134979098,0.37716,2651.5,2651.4,3.65]
[1727134979595,0.37716,2651.5,2651.4,0.641]
[1727134980395,3.58496,2651.5,2651.4,0.641]
[1727134981699,3.2078,2651.5,2651.4,0.641]
[1727134982609,3.58496,2651.5,2651.4,0.641]
[1727134990602,0.37717,2651.4,2651.3,0.98768688]
[1727134990813,0.37717,2651.4,2651.2,1.48199402]
[1727134990814,1.3541163,2651.4,2651.1,0.98768688]
[1727134990999,1.3541163,2651.4,2651.3,0.682]
[1727134991399,0.37718,2651.4,2651.3,1.3985]
[1727134991603,0.37718,2651.4,2651.3,2.1057]
[1727134991802,5.2602063,2651.5,2651.3,2.48288]
[1727134991997,0.37717,2651.4,2651.3,2.1057]
[1727134992206,5.2602063,2651.5,2651.3,2.48289]
[1727134992404,0.37717,2651.4,2651.3,2.1057]
[1727134992804,5.2602063,2651.5,2651.3,2.48289]
[1727134993412,0.37717,2651.4,2651.3,2.1057]
[1727134993906,5.2602063,2651.5,2651.3,2.1057]
[1727134994210,0.37717,2651.4,2651.3,2.1057]
[1727134995402,0.37719,2651.3,2651.2,0.98768688]
[1727134995809,0.37719,2651.3,2651.1,4.02168688]
[1727134996016,0.3772,2651.2,2651.1,4.02168688]
[1727134996208,0.3772,2651.2,2651.1,4.61133531]
[1727134996410,0.3772,2651.2,2651.1,1.57733531]
[1727134997313,7.357,2651.2,2651.1,0.98768688]
[1727134997509,0.37722,2651.1,2651.0,0.98768688]
[1727134997710,0.37723,2651.0,2650.9,0.98768688]
[1727134998014,0.37723,2651.0,2650.9,2.10068426]
[1727134998409,0.676,2651.1,2650.9,2.10068426]
[1727134998613,1.05322,2651.1,2651.0,0.98768688]
[1727134998918,1.05322,2651.1,2651.0,1.72698688]
[1727134999310,1.05322,2651.1,2651.0,0.7393]
[1727134999506,0.37722,2651.1,2651.0,1.11653]
[1727134999815,0.37722,2651.1,2651.0,1.72698688]
[1727135000008,0.37722,2651.1,2651.0,0.7393]
[1727135000910,0.37723,2651.0,2650.9,0.98768688]
[1727135001116,0.711,2651.0,2650.9,0.98768688]
[1727135002416,0.37723,2651.1,2650.9,1.36492688]
[1727135003316,0.37723,2651.1,2650.9,0.98768688]
[1727135003516,0.37723,2651.1,2650.8,7.04893688]
[1727135003819,0.37723,2651.1,2650.9,0.37724]
[1727135006019,3.58501,2651.2,2651.0,0.37723]
[1727135006416,3.58501,2651.2,2651.1,1.4615]
[1727135007620,3.58501,2651.2,2651.1,2.145]
[1727135008118,0.9769363,2651.4,2651.1,5.917]
[1727135008422,0.9769363,2651.4,2651.2,0.3772]
[1727135008423,0.37717,2651.4,2651.2,0.3772]
[1727135008720,1.06857,2651.5,2651.2,0.3772]
[1727135009019,0.37717,2651.5,2651.2,0.3772]
[1727135009717,0.37717,2651.5,2651.3,0.37718]
[1727135010719,0.37717,2651.5,2651.2,0.37719]
[1727135010917,0.37717,2651.5,2651.3,0.37719]
[1727135011116,0.37717,2651.4,2651.2,0.37719]
[1727135013122,0.37718,2651.4,2651.2,0.3772]
[1727135017121,0.37717,2651.5,2651.3,0.37719]
[1727135017323,0.9769363,2651.7,2651.6,0.37714]
[1727135017630,1.7187477,2652.0,2651.6,5.13841965]
[1727135017843,2.3070077,2651.7,2651.6,4.0263837]
[1727135018021,0.37716,2651.5,2651.4,0.98494316]
[1727135018219,1.9298777,2651.7,2651.3,3.034]
[1727135018220,0.37717,2651.4,2651.3,4.01894316]
[1727135018526,0.37717,2651.5,2651.3,5.11501534]
[1727135018731,0.37717,2651.5,2651.4,0.98543933]
[1727135019127,0.37717,2651.5,2651.4,1.57504265]
[1727135019128,3.58497,2651.5,2651.4,1.57504265]
[1727135019433,3.58497,2651.5,2651.4,1.70418979]
[1727135019632,3.58497,2651.5,2651.4,1.57536962]
[1727135020128,3.2078,2651.5,2651.4,1.57536962]
[1727135020317,3.2078,2651.5,2651.4,2.08135405]
[1727135020523,3.2078,2651.5,2651.4,3.18617807]
[1727135020524,3.58496,2651.5,2651.4,3.18617807]
[1727135020723,3.2078,2651.5,2651.4,3.18617807]
[1727135021419,3.58496,2651.5,2651.4,3.18617807]
[1727135023751,4.5720077,2651.5,2651.4,2.5972418]
[1727135023929,4.1948477,2651.5,2651.4,3.18684466]
[1727135024133,3.2078,2651.5,2651.4,3.18684466]
[1727135025135,4.5720077,2651.5,2651.4,3.18684466]
[1727135025428,4.1948477,2651.5,2651.4,3.18684466]
[1727135026438,4.5720077,2651.5,2651.4,3.18684466]
[1727135026639,4.5720077,2651.5,2651.4,2.5972418]
[1727135026827,4.5720077,2651.5,2651.4,3.18684864]
[1727135027736,3.58496,2651.5,2651.4,3.18684864]
[1727135028542,3.58496,2651.5,2651.4,1.70469495]
[1727135028740,3.58496,2651.5,2651.4,3.18668897]
[1727135029133,3.58496,2651.5,2651.4,0.98623375]
[1727135029134,9.2861077,2651.5,2651.4,0.98623375]
[1727135029339,0.37717,2651.4,2651.3,1.48199402]
[1727135029539,1.10017,2651.4,2651.3,2.5971932]
[1727135030039,2.08890586,2651.4,2651.3,2.10155965]
[1727135031141,2.08890586,2651.4,2651.3,1.57598992]
[1727135032041,2.08890586,2651.4,2651.3,2.69125179]
[1727135032243,1.36590586,2651.4,2651.3,1.57598992]
[1727135032441,1.36590586,2651.4,2651.3,2.99958992]
[1727135033046,1.36590586,2651.4,2651.3,2.99962098]
[1727135033240,1.36590586,2651.4,2651.3,2.40996047]
[1727135033443,1.36590586,2651.4,2651.3,2.99961962]
[1727135033640,1.36590586,2651.4,2651.3,2.40996047]
[1727135033842,1.36590586,2651.4,2651.3,4.1149179]
[1727135035038,1.36590586,2651.4,2651.3,3.52525874]
[1727135035444,1.36590586,2651.4,2651.3,4.11491749]
[1727135038252,1.36590586,2651.4,2651.3,4.11431979]
[1727135040465,1.36590586,2651.4,2651.3,2.99961922]
[1727135040652,1.36590586,2651.4,2651.3,2.40996047]
[1727135041162,1.36590586,2651.4,2651.3,2.99960898]
[1727135041360,1.36590586,2651.4,2651.3,2.40996047]
[1727135041555,1.36590586,2651.4,2651.3,2.99961449]
[1727135041895,1.36590586,2651.4,2651.3,2.40996047]
[1727135042053,1.36590586,2651.4,2651.3,2.99960747]
[1727135042255,1.36590586,2651.4,2651.3,4.1143219]
[1727135043249,1.36590586,2651.4,2651.3,4.11432022]
[1727135044466,0.98873586,2651.4,2651.3,4.11432022]
[1727135044670,0.98873586,2651.4,2651.3,4.49151022]
[1727135044862,0.98873586,2651.4,2651.3,4.98714377]
[1727135045369,4.19653586,2651.5,2651.4,0.37717]
[1727135045660,4.68476439,2651.5,2651.4,1.95296903]
[1727135046059,3.2078,2651.5,2651.4,1.95296903]
[1727135047457,4.68476439,2651.5,2651.4,1.95296903]
[1727135049067,4.68476439,2651.5,2651.4,1.57579903]
[1727135049267,4.68476439,2651.5,2651.4,1.95296903]
[1727135050262,4.68476439,2651.5,2651.4,1.57579903]
[1727135050564,5.06192439,2651.5,2651.4,1.57579903]
[1727135050865,9.77602439,2651.5,2651.4,1.57578047]
[1727135051066,0.37717,2651.4,2651.3,0.98615371]
[1727135051265,6.69197559,2651.4,2651.2,0.98615371]
[1727135051571,6.69197559,2651.4,2651.1,0.98615371]
[1727135051572,0.3772,2651.2,2651.1,0.98615371]
[1727135051764,1.86119132,2651.2,2651.1,2.69071506]
[1727135052071,1.86119132,2651.2,2651.1,2.10102464]
[1727135052072,6.29829132,2651.2,2651.1,2.10102464]
[1727135052274,6.29829132,2651.2,2651.1,2.69071507]
[1727135052468,3.20799132,2651.2,2651.1,2.69071507]
[1727135052666,6.97999132,2651.2,2651.1,1.70456136]
[1727135052869,10.18779132,2651.2,2651.1,2.6914755]
[1727135053270,10.18779132,2651.2,2651.1,1.57660457]
[1727135053570,10.18779132,2651.2,2651.1,2.10180929]
[1727135053771,10.18779132,2651.2,2651.1,2.69152597]
[1727135054163,10.18779132,2651.2,2651.1,1.57663082]
[1727135054776,10.18779132,2651.2,2651.1,2.6915046]
[1727135054970,10.18779132,2651.2,2651.1,1.57663082]
[1727135055378,0.37722,2651.1,2651.0,0.98691414]
[1727135055671,0.37722,2651.1,2651.0,2.69143932]
[1727135056070,1.36644878,2651.1,2651.0,3.18650213]
[1727135056273,1.36644878,2651.1,2651.0,1.70450811]
[1727135057177,1.36644878,2651.1,2651.0,2.69116654]
[1727135059168,0.37723,2651.0,2650.9,1.69405843]
[1727135059470,0.37723,2651.0,2650.9,3.89360658]
[1727135060276,0.37723,2651.0,2650.9,1.29712926]
[1727135060481,0.37723,2651.0,2650.9,3.89110721]
[1727135060967,0.37723,2651.0,2650.9,3.89104965]
[1727135061215,0.37723,2651.0,2650.9,3.30132039]
[1727135061375,0.37723,2651.0,2650.9,3.89104707]
[1727135061676,0.37723,2651.0,2650.9,3.30132039]
[1727135061972,1.36601368,2651.1,2650.9,4.26828705]
[1727135062277,0.98878368,2651.1,2651.0,1.95323246]
[1727135062571,1.65388368,2651.2,2651.0,2.67163246]
[1727135062763,1.65388368,2651.2,2651.1,0.6634]
[1727135063876,2.03108368,2651.2,2651.1,0.6634]
[1727135064084,1.65388368,2651.2,2651.1,0.6634]
[1727135064380,2.03108368,2651.2,2651.1,0.6634]
[1727135067374,2.03108368,2651.2,2651.0,0.98630535]
[1727135067375,0.37722,2651.1,2651.0,0.98630535]
[1727135067579,1.36600368,2651.1,2651.0,0.98630535]
[1727135068180,2.03430368,2651.1,2651.0,0.98630535]
[1727135069478,2.03430368,2651.1,2651.0,1.57602405]
[1727135069680,1.65708368,2651.1,2651.0,1.57602405]
[1727135070077,0.6683,2651.1,2651.0,1.57602405]
[1727135070578,2.03109368,2651.2,2651.0,1.57602405]
[1727135070879,1.65388368,2651.2,2651.0,1.36353535]
[1727135071275,2.03108368,2651.2,2651.0,0.98630535]
[1727135072382,0.98878368,2651.1,2651.0,0.98630535]
[1727135072576,0.98878368,2651.1,2651.0,2.68941273]
[1727135073280,0.6651,2651.2,2651.0,2.08033738]
[1727135073582,1.65388368,2651.2,2651.1,1.57576441]
[1727135074191,2.03108368,2651.2,2651.1,1.5757266]
[1727135074570,2.03108368,2651.2,2651.1,2.68892097]
[1727135074775,2.03108368,2651.2,2651.1,2.09926444]
[1727135074975,1.65388368,2651.2,2651.1,2.09926444]
[1727135075184,2.03108368,2651.2,2651.1,2.09926444]
[1727135075386,2.03108368,2651.2,2651.1,2.0992887]
[1727135077890,2.03108368,2651.2,2651.1,0.98607007]
[1727135078579,7.02308368,2651.2,2651.1,0.98607007]
[1727135078780,7.75648368,2651.2,2651.1,0.98607007]
[1727135079289,8.25087552,2651.2,2651.1,0.98607007]
[1727135079581,8.25087552,2651.2,2650.9,1.47889976]
[1727135079582,0.37722,2651.1,2650.9,1.47889976]
[1727135079782,2.10796815,2651.1,2651.0,1.11320946]
[1727135079989,2.10796815,2651.1,2651.0,1.70289843]
[1727135080188,2.10796815,2651.1,2651.0,1.70290154]
[1727135081386,2.10796815,2651.1,2651.0,1.70290248]
[1727135083690,2.10796815,2651.1,2651.0,3.18180224]
[1727135083879,2.10796815,2651.1,2651.0,2.68917849]
[1727135084590,2.10796815,2651.1,2651.0,1.70290717]
[1727135084792,2.10796815,2651.1,2651.0,3.18180693]
[1727135085183,0.94312,2650.9,2650.7,0.98636628]
[1727135085378,0.94312,2650.9,2650.5,1.3926]
[1727135085379,0.37729,2650.6,2650.5,2.37896628]
[1727135085692,0.37729,2650.6,2650.5,2.96875827]
[1727135085879,1.36644672,2650.6,2650.5,2.37896628]
[1727135086583,1.36644672,2650.6,2650.5,0.98636628]
[1727135087494,5.13924672,2650.6,2650.5,0.98636628]
[1727135087684,0.3773,2650.5,2650.4,0.98636628]
[1727135087884,0.3773,2650.5,2650.3,1.94842812]
[1727135087885,0.37732,2650.4,2650.3,1.45589464]
[1727135088086,1.11372,2650.4,2650.3,1.45589464]
[1727135089792,1.11372,2650.4,2650.2,1.68196628]
[1727135090991,1.59733,2650.3,2650.2,1.68196628]
[1727135091298,1.59733,2650.3,2650.2,0.6956]
[1727135091494,1.22,2650.3,2650.2,0.6956]
[1727135091791,1.59733,2650.3,2650.1,1.67256628]
[1727135091993,3.2078,2650.2,2650.1,1.67256628]
[1727135092595,3.2078,2650.2,2650.1,2.04992628]
[1727135093493,3.2078,2650.2,2650.1,3.17042243]
[1727135094001,3.2078,2650.2,2650.1,2.04992628]
[1727135095404,2.33372,2650.4,2650.1,2.04992628]
[1727135095601,2.33372,2650.4,2650.2,0.37734]
[1727135096703,1.9564,2650.4,2650.2,0.37734]
[1727135097013,1.11372,2650.4,2650.2,0.37734]
[1727135097307,0.7364,2650.4,2650.2,0.37734]
[1727135098308,1.11372,2650.4,2650.2,0.37734]
[1727135100297,3.2078,2650.6,2650.2,1.22]
[1727135100497,3.2078,2650.6,2650.5,0.3773]
[1727135103823,3.58509,2650.6,2650.4,0.37731]
[1727135104024,3.2078,2650.6,2650.4,0.37731]
[1727135104216,0.98915672,2651.2,2650.5,11.18734264]
[1727135104417,0.98915672,2651.4,2651.0,3.2078]
[1727135104620,0.98915672,2651.4,2651.3,0.37719]
[1727135104922,1.4439,2651.5,2651.4,0.37717]
[1727135105125,1.4439,2651.5,2651.3,0.37718]
[1727135105919,1.4439,2651.5,2651.1,2.1183]
[1727135106223,2.6639,2651.5,2651.3,0.37718]
[1727135107321,1.9435,2651.5,2651.4,0.37717]
[1727135107518,1.9435,2651.5,2651.1,2.1183]
[1727135108121,1.9435,2651.5,2651.3,0.37718]
[1727135109826,1.9435,2651.5,2651.1,2.1183]
[1727135110031,1.9435,2651.5,2651.3,0.37718]
[1727135110322,1.9435,2651.5,2651.4,0.37717]
[1727135110719,1.9435,2651.5,2651.3,0.37718]
[1727135111929,1.9435,2651.5,2651.4,0.37717]
[1727135112926,1.9435,2651.5,2651.3,0.37718]
[1727135114520,0.37718,2651.4,2651.1,2.1183]
[1727135114824,1.22,2651.2,2651.1,1.4161]
[1727135115126,1.22,2651.2,2651.1,0.6732]
[1727135115825,1.22,2651.2,2651.1,1.05042]
[1727135116022,2.28148,2651.4,2651.1,1.05042]
[1727135117934,0.37719,2651.3,2651.1,1.05041]
[1727135118126,1.22,2651.2,2651.1,0.6732]
[1727135118527,1.22,2651.2,2651.1,1.05042]
[1727135119232,1.22,2651.2,2651.1,0.6732]
[1727135119533,0.37722,2651.1,2650.9,1.84034]
[1727135119729,1.22,2651.0,2650.9,1.84034]
[1727135120832,0.37727,2650.7,2650.5,1.36189121]
[1727135121023,1.9536,2650.6,2650.5,0.3773]
[1727135121534,1.9536,2650.6,2650.4,4.91329121]
[1727135121535,5.7264,2650.6,2650.4,0.7209]
[1727135121744,5.7264,2650.6,2650.2,1.70549121]
[1727135121745,0.37732,2650.4,2650.2,1.70549121]
[1727135121929,4.80512,2650.4,2650.1,0.37735]
[1727135122537,0.6814,2650.3,2650.1,0.37735]
[1727135122935,0.6814,2650.3,2650.0,2.1293]
[1727135122936,0.7336,2650.2,2650.0,2.1293]
[1727135123125,0.37737,2650.1,2649.8,4.19240032]
[1727135123428,0.37737,2650.1,2649.8,3.58519]
[1727135124327,3.3836,2650.2,2650.0,0.37737]
[1727135124527,3.76095,2650.2,2649.9,0.37738]
[1727135127931,0.37736,2650.1,2649.9,0.37738]
[1727135129028,0.37736,2650.1,2649.8,0.37739]
[1727135129332,3.58516,2650.1,2649.8,0.37739]
[1727135129528,3.58516,2650.1,2649.9,0.37739]
[1727135130724,3.58516,2650.1,2649.8,0.37739]
[1727135131227,3.2078,2650.1,2649.8,0.3774]
[1727135131633,3.58516,2650.1,2649.8,0.3774]
[1727135132829,3.58516,2650.1,2649.7,0.6933]
[1727135133034,3.3836,2650.2,2649.9,0.37739]
[1727135133235,3.2078,2650.4,2650.3,0.37733]
[1727135133838,3.2078,2650.8,2650.6,0.37729]
[1727135134030,0.37727,2650.7,2650.5,0.37729]
[1727135134232,0.37729,2650.6,2650.4,2.1523]
[1727135134429,0.37729,2650.6,2650.4,2.52961]
[1727135135740,3.02728,2650.7,2650.5,0.3773]
[1727135135931,2.65,2650.7,2650.5,0.3773]
[1727135136133,2.65,2650.7,2650.4,2.52961]
[1727135136432,2.65,2650.7,2650.5,0.3773]
[1727135136433,3.02728,2650.7,2650.5,0.3773]
[1727135136632,3.02728,2650.7,2650.4,2.52961]
[1727135137441,2.65,2650.7,2650.5,0.3773]
[1727135138142,3.2078,2650.8,2650.7,0.37727]
[1727135138328,3.2078,2651.2,2650.9,0.37723]
[1727135138532,3.2078,2651.2,2650.4,5.74557]
[1727135138533,3.58501,2651.2,2651.0,0.37723]
[1727135138730,3.58501,2651.2,2650.9,0.37723]
[1727135138942,0.37722,2651.1,2651.0,1.4344]
[1727135139446,11.8924,2651.5,2651.0,5.2064]
[1727135139447,11.141,2651.5,2651.0,5.2064]
[1727135139652,3.2078,2651.7,2651.5,0.37716]
[1727135139653,3.8954,2651.7,2651.5,0.37716]
[1727135139938,3.8954,2651.7,2651.1,3.4236]
[1727135139939,4.98713,2651.7,2651.1,3.4236]
[1727135140241,4.98713,2651.7,2651.4,0.37717]
[1727135140539,0.37715,2651.6,2651.3,0.37718]
[1727135140935,4.98714,2651.7,2651.3,0.37718]
[1727135141335,4.98714,2651.7,2651.4,0.37717]
[1727135141537,4.98714,2651.7,2651.3,0.37718]
[1727135142039,4.98714,2651.7,2651.1,3.4236]
[1727135142347,4.98714,2651.7,2651.3,0.37718]
[1727135142732,4.61,2651.7,2651.4,0.37717]
[1727135143131,4.98713,2651.7,2651.4,0.37717]
[1727135143744,4.98713,2651.7,2651.3,0.37718]
[1727135144234,4.98713,2651.7,2651.1,3.4236]
[1727135144434,4.98713,2651.7,2651.3,0.37718]
[1727135144846,3.58493,2651.7,2651.4,0.37717]
[1727135147145,0.37715,2651.6,2651.3,0.37718]
[1727135147347,0.37715,2651.6,2651.1,3.4236]
[1727135147541,3.58494,2651.7,2651.1,3.4236]
[1727135147846,0.37715,2651.6,2651.3,0.37718]
[1727135149747,3.2078,2651.7,2651.4,0.37717]
[1727135149945,3.2078,2651.7,2651.5,1.76595]
[1727135152352,3.2078,2651.7,2651.6,0.37714]
[1727135152539,0.3771,2651.9,2651.6,0.37714]
[1727135152845,0.3771,2651.9,2651.6,1.10724]
[1727135153035,4.666,2652.0,2651.6,0.7301]
[1727135153347,1.4582,2652.0,2651.8,0.37711]
[1727135153542,1.4582,2652.0,2651.9,0.3771]
[1727135153753,0.7497,2652.0,2651.9,0.3771]